[Event "Titled Tuesday Blitz February 22 Late 2022"]
[White "Polanco Nunez, Yoel Estarling"]
[Black "Golubka, Petro"]
[WhiteFideId "6401783"]
[BlackFideId "14114224"]
[WhiteElo "2132"]
[BlackElo "2392"]
[Result "0-1"]
[Round "01"]
[TimeControl "180+1"]
[Date "2022.02.23"]
[WhiteClock "0:00:55"]
[BlackClock "0:00:47"]

1. Nf3 {[%clk 0:02:41]}  Nf6 {[%clk 0:02:49]} 2. c4 {[%clk 0:02:40]}  e6 {[%clk 0:02:46]} 3. Nc3 {[%clk 0:02:39]}  d5 {[%clk 0:02:47]} 4. cxd5 {[%clk 0:02:37]}  exd5 {[%clk 0:02:48]} 5. d4 {[%clk 0:02:38]}  Be7 {[%clk 0:02:48]} 6. Bg5 {[%clk 0:02:38]}  O-O {[%clk 0:02:49]} 7. e3 {[%clk 0:02:39]}  c6 {[%clk 0:02:49]} 8. Bd3 {[%clk 0:02:39]}  Nbd7 {[%clk 0:02:49]} 9. O-O {[%clk 0:02:39]}  Re8 {[%clk 0:02:50]} 10. Qc2 {[%clk 0:02:39]}  Nf8 {[%clk 0:02:49]} 11. Bf4 {[%clk 0:02:32]}  Nh5 {[%clk 0:02:49]} 12. Be5 {[%clk 0:02:31]}  g6 {[%clk 0:02:49]} 13. Rab1 {[%clk 0:02:26]}  Bg4 {[%clk 0:02:44]} 14. Nd2 {[%clk 0:02:21]}  Nd7 {[%clk 0:02:40]} 15. Bg3 {[%clk 0:02:07]}  Nxg3 {[%clk 0:02:31]} 16. hxg3 {[%clk 0:02:08]}  a5 {[%clk 0:02:27]} 17. a3 {[%clk 0:02:07]}  b5 {[%clk 0:02:27]} 18. b4 {[%clk 0:02:06]}  axb4 {[%clk 0:02:27]} 19. axb4 {[%clk 0:02:06]}  Nb6 {[%clk 0:02:27]} 20. e4 {[%clk 0:02:00]}  dxe4 {[%clk 0:02:22]} 21. Ndxe4 {[%clk 0:01:59]}  Qxd4 {[%clk 0:02:19]} 22. Kh2 {[%clk 0:01:47]}  Bxb4 {[%clk 0:02:10]} 23. Rxb4 {[%clk 0:01:45]}  Qxb4 {[%clk 0:02:11]} 24. Nf6+ {[%clk 0:01:46]}  Kg7 {[%clk 0:02:11]} 25. Nce4 {[%clk 0:01:30]}  Rxe4 {[%clk 0:01:52]} 26. Nxe4 {[%clk 0:01:24]}  Bd7 {[%clk 0:01:46]} 27. Rb1 {[%clk 0:01:22]}  Qd4 {[%clk 0:01:44]} 28. Qd2 {[%clk 0:01:22]}  Ra3 {[%clk 0:01:31]} 29. Rd1 {[%clk 0:01:09]}  Bf5 {[%clk 0:01:18]} 30. f3 {[%clk 0:01:05]}  Nd5 {[%clk 0:01:06]} 31. g4 {[%clk 0:01:04]}  Qe5+ {[%clk 0:01:03]} 32. Kh1 {[%clk 0:01:03]}  Bxe4 {[%clk 0:01:00]} 33. Bxe4 {[%clk 0:01:03]}  Nc3 {[%clk 0:00:57]} 34. Qb2 {[%clk 0:00:59]}  Ra2 {[%clk 0:00:51]} 35. Qb3 {[%clk 0:00:58]}  Nxd1 {[%clk 0:00:49]} 36. Qxd1 {[%clk 0:00:56]}  Ra1 {[%clk 0:00:48]} 37. Bb1 {[%clk 0:00:55]}  Qb2 {[%clk 0:00:47]} 0-1


[Site "https://www.chess.com"]

[Event "Titled Tuesday Blitz February 22 Late 2022"]
[White "Romero Ruscalleda, Josep"]
[Black "Shahaliyev, Ismayil"]
[WhiteFideId "2231859"]
[BlackFideId "13406388"]
[WhiteElo "2373"]
[BlackElo "2105"]
[Result "0-1"]
[Round "01"]
[TimeControl "180+1"]
[Date "2022.02.23"]
[WhiteClock "0:00:22"]
[BlackClock "0:00:16"]

1. e4 {[%clk 0:03:00]}  e6 {[%clk 0:02:59]} 2. d4 {[%clk 0:03:00]}  d5 {[%clk 0:02:59]} 3. e5 {[%clk 0:03:01]}  c5 {[%clk 0:02:59]} 4. c3 {[%clk 0:03:01]}  Qb6 {[%clk 0:02:59]} 5. Bd3 {[%clk 0:03:00]}  Bd7 {[%clk 0:02:49]} 6. dxc5 {[%clk 0:03:00]}  Bxc5 {[%clk 0:02:47]} 7. Qe2 {[%clk 0:03:00]}  Nc6 {[%clk 0:02:36]} 8. Nf3 {[%clk 0:03:00]}  a5 {[%clk 0:02:32]} 9. O-O {[%clk 0:02:59]}  Nge7 {[%clk 0:02:24]} 10. Nbd2 {[%clk 0:02:54]}  a4 {[%clk 0:02:19]} 11. b4 {[%clk 0:02:46]}  axb3 {[%clk 0:02:18]} 12. Nxb3 {[%clk 0:02:46]}  Ba3 {[%clk 0:02:12]} 13. Be3 {[%clk 0:02:26]}  Qc7 {[%clk 0:02:12]} 14. Bf4 {[%clk 0:02:22]}  Ng6 {[%clk 0:02:12]} 15. Bg3 {[%clk 0:02:22]}  O-O-O {[%clk 0:02:01]} 16. c4 {[%clk 0:02:20]}  dxc4 {[%clk 0:01:36]} 17. Bxc4 {[%clk 0:02:18]}  h5 {[%clk 0:01:37]} 18. h4 {[%clk 0:02:17]}  Nge7 {[%clk 0:01:37]} 19. Nbd4 {[%clk 0:02:10]}  Nxd4 {[%clk 0:01:25]} 20. Nxd4 {[%clk 0:02:10]}  Bc6 {[%clk 0:01:26]} 21. Nxc6 {[%clk 0:02:08]}  Nxc6 {[%clk 0:01:27]} 22. Qe3 {[%clk 0:01:59]}  Qa5 {[%clk 0:01:24]} 23. Rab1 {[%clk 0:01:54]}  Rd4 {[%clk 0:01:15]} 24. Bb5 {[%clk 0:01:42]}  Rhd8 {[%clk 0:01:05]} 25. Qb3 {[%clk 0:01:34]}  Rb4 {[%clk 0:00:53]} 26. Qf3 {[%clk 0:01:22]}  Nd4 {[%clk 0:00:36]} 27. Qc3+ {[%clk 0:01:09]}  Kb8 {[%clk 0:00:36]} 28. Rxb4 {[%clk 0:01:00]}  Bxb4 {[%clk 0:00:36]} 29. Qc4 {[%clk 0:00:58]}  Qxb5 {[%clk 0:00:35]} 30. Qxb5 {[%clk 0:00:57]}  Nxb5 {[%clk 0:00:36]} 31. Rb1 {[%clk 0:00:56]}  Rd4 {[%clk 0:00:35]} 32. f4 {[%clk 0:00:52]}  Nc3 {[%clk 0:00:34]} 33. Rb3 {[%clk 0:00:50]}  Ne4 {[%clk 0:00:30]} 34. Kh2 {[%clk 0:00:47]}  Bc5 {[%clk 0:00:28]} 35. Be1 {[%clk 0:00:46]}  Rd1 {[%clk 0:00:28]} 36. Ba5 {[%clk 0:00:44]}  Bg1+ {[%clk 0:00:26]} 37. Kh3 {[%clk 0:00:43]}  Be3 {[%clk 0:00:20]} 38. g4 {[%clk 0:00:41]}  Nf2+ {[%clk 0:00:14]} 39. Kg2 {[%clk 0:00:41]}  Nxg4 {[%clk 0:00:15]} 40. Kf3 {[%clk 0:00:41]}  Rd5 {[%clk 0:00:15]} 41. Bc3 {[%clk 0:00:38]}  Bc5 {[%clk 0:00:16]} 42. a4 {[%clk 0:00:38]}  g6 {[%clk 0:00:16]} 43. a5 {[%clk 0:00:35]}  Ka7 {[%clk 0:00:17]} 44. Be1 {[%clk 0:00:34]}  Ka6 {[%clk 0:00:17]} 45. Ke4 {[%clk 0:00:28]}  Ne3 {[%clk 0:00:17]} 46. Bf2 {[%clk 0:00:27]}  Nf5 {[%clk 0:00:16]} 47. Bxc5 {[%clk 0:00:25]}  Rxc5 {[%clk 0:00:17]} 48. Rb6+ {[%clk 0:00:26]}  Ka7 {[%clk 0:00:16]} 49. Rb4 {[%clk 0:00:25]}  Rc3 {[%clk 0:00:15]} 50. Rxb7+ {[%clk 0:00:21]}  Kxb7 {[%clk 0:00:16]} 51. a6+ {[%clk 0:00:22]}  Ka8 {[%clk 0:00:16]} 0-1


[Site "https://www.chess.com"]

[Event "Titled Tuesday Blitz February 22 Late 2022"]
[White "Roque Sola, Jose Luis"]
[Black "Goltseva, Ekaterina"]
[WhiteFideId "5120390"]
[BlackFideId "24173770"]
[WhiteElo "1983"]
[BlackElo "2140"]
[Result "0-1"]
[Round "01"]
[TimeControl "180+1"]
[Date "2022.02.23"]
[WhiteClock "0:00:06"]
[BlackClock "0:00:08"]

1. c4 {[%clk 0:02:59]}  e5 {[%clk 0:02:58]} 2. Nc3 {[%clk 0:02:58]}  Nf6 {[%clk 0:02:58]} 3. Nf3 {[%clk 0:02:57]}  Nc6 {[%clk 0:02:58]} 4. g3 {[%clk 0:02:57]}  Bb4 {[%clk 0:02:58]} 5. Bg2 {[%clk 0:02:54]}  d6 {[%clk 0:02:57]} 6. O-O {[%clk 0:02:53]}  O-O {[%clk 0:02:58]} 7. d3 {[%clk 0:02:50]}  Bg4 {[%clk 0:02:55]} 8. a3 {[%clk 0:02:50]}  Bxc3 {[%clk 0:02:55]} 9. bxc3 {[%clk 0:02:50]}  Qd7 {[%clk 0:02:55]} 10. Bg5 {[%clk 0:02:47]}  Qf5 {[%clk 0:02:54]} 11. Bxf6 {[%clk 0:02:43]}  Qxf6 {[%clk 0:02:53]} 12. Rb1 {[%clk 0:02:43]}  Rab8 {[%clk 0:02:51]} 13. h3 {[%clk 0:02:35]}  Bf5 {[%clk 0:02:27]} 14. Qd2 {[%clk 0:02:24]}  e4 {[%clk 0:02:16]} 15. Ng5 {[%clk 0:02:11]}  exd3 {[%clk 0:02:07]} 16. exd3 {[%clk 0:02:07]}  Ne5 {[%clk 0:01:59]} 17. Ne4 {[%clk 0:02:04]}  Qg6 {[%clk 0:01:53]} 18. Kh2 {[%clk 0:01:49]}  Nxc4 {[%clk 0:01:50]} 19. dxc4 {[%clk 0:01:38]}  Bxe4 {[%clk 0:01:48]} 20. Bxe4 {[%clk 0:01:38]}  Qxe4 {[%clk 0:01:49]} 21. Rfe1 {[%clk 0:01:37]}  Qxc4 {[%clk 0:01:49]} 22. Rb4 {[%clk 0:01:33]}  Qc6 {[%clk 0:01:44]} 23. Rg4 {[%clk 0:01:33]}  Qc5 {[%clk 0:01:38]} 24. Re2 {[%clk 0:01:13]}  f5 {[%clk 0:01:27]} 25. Rg5 {[%clk 0:00:41]}  Rbe8 {[%clk 0:01:22]} 26. Rxe8 {[%clk 0:00:37]}  Rxe8 {[%clk 0:01:21]} 27. Qf4 {[%clk 0:00:29]}  Re5 {[%clk 0:01:12]} 28. h4 {[%clk 0:00:26]}  Qd5 {[%clk 0:01:03]} 29. h5 {[%clk 0:00:25]}  h6 {[%clk 0:01:01]} 30. Rg6 {[%clk 0:00:24]}  Re1 {[%clk 0:00:56]} 31. f3 {[%clk 0:00:22]}  Re2+ {[%clk 0:00:55]} 32. Kh3 {[%clk 0:00:22]}  Kh7 {[%clk 0:00:23]} 33. g4 {[%clk 0:00:10]}  fxg4+ {[%clk 0:00:18]} 34. Qxg4 {[%clk 0:00:10]}  Qf7 {[%clk 0:00:10]} 35. f4 {[%clk 0:00:09]}  Re3+ {[%clk 0:00:09]} 36. Kg2 {[%clk 0:00:09]}  Re7 {[%clk 0:00:08]} 37. f5 {[%clk 0:00:09]}  Qd5+ {[%clk 0:00:08]} 38. Kg3 {[%clk 0:00:08]}  Re3+ {[%clk 0:00:08]} 39. Kf4 {[%clk 0:00:06]}  Qe4# {[%clk 0:00:08]} 0-1


[Site "https://www.chess.com"]

[Event "Titled Tuesday Blitz February 22 Late 2022"]
[White "Sadhwani, Raunak"]
[Black "Levine, Joseph"]
[WhiteFideId "35093487"]
[BlackFideId "30940346"]
[WhiteElo "2616"]
[BlackElo "1802"]
[Result "1-0"]
[Round "01"]
[TimeControl "180+1"]
[Date "2022.02.22"]
[WhiteClock "0:01:14"]
[BlackClock "0:00:05"]

1. d4 {[%clk 0:02:59]}  d5 {[%clk 0:02:59]} 2. Nf3 {[%clk 0:03:00]}  Nf6 {[%clk 0:02:59]} 3. Bf4 {[%clk 0:03:00]}  Bf5 {[%clk 0:02:58]} 4. e3 {[%clk 0:03:01]}  e6 {[%clk 0:02:58]} 5. c4 {[%clk 0:03:01]}  Nbd7 {[%clk 0:02:58]} 6. Nc3 {[%clk 0:03:01]}  Bd6 {[%clk 0:02:49]} 7. Bxd6 {[%clk 0:02:53]}  cxd6 {[%clk 0:02:50]} 8. cxd5 {[%clk 0:02:53]}  Nxd5 {[%clk 0:02:40]} 9. Nxd5 {[%clk 0:02:52]}  exd5 {[%clk 0:02:41]} 10. Bd3 {[%clk 0:02:52]}  Qa5+ {[%clk 0:02:35]} 11. Qd2 {[%clk 0:02:50]}  Qxd2+ {[%clk 0:02:34]} 12. Kxd2 {[%clk 0:02:51]}  Bxd3 {[%clk 0:02:34]} 13. Kxd3 {[%clk 0:02:52]}  Nf6 {[%clk 0:02:32]} 14. Rhc1 {[%clk 0:02:50]}  Kd7 {[%clk 0:02:29]} 15. Ng5 {[%clk 0:02:50]}  Rhf8 {[%clk 0:02:24]} 16. f3 {[%clk 0:02:41]}  h6 {[%clk 0:02:22]} 17. Nh3 {[%clk 0:02:41]}  Rac8 {[%clk 0:02:19]} 18. g4 {[%clk 0:02:39]}  g5 {[%clk 0:02:03]} 19. Nf2 {[%clk 0:02:36]}  b5 {[%clk 0:01:54]} 20. h4 {[%clk 0:02:33]}  a5 {[%clk 0:01:42]} 21. h5 {[%clk 0:02:25]}  Ke6 {[%clk 0:01:27]} 22. Nh1 {[%clk 0:02:23]}  Ng8 {[%clk 0:01:11]} 23. Ng3 {[%clk 0:02:20]}  Ne7 {[%clk 0:01:10]} 24. e4 {[%clk 0:01:59]}  dxe4+ {[%clk 0:01:06]} 25. fxe4 {[%clk 0:02:00]}  f6 {[%clk 0:00:56]} 26. d5+ {[%clk 0:01:57]}  Ke5 {[%clk 0:00:48]} 27. Rf1 {[%clk 0:01:39]}  Rc5 {[%clk 0:00:17]} 28. Nf5 {[%clk 0:01:32]}  Ng8 {[%clk 0:00:17]} 29. Rf3 {[%clk 0:01:20]}  Rfc8 {[%clk 0:00:16]} 30. Nd4 {[%clk 0:01:13]}  Ne7 {[%clk 0:00:16]} 31. Raf1 {[%clk 0:01:14]}  Nxd5 {[%clk 0:00:05]} 32. Rf5# {[%clk 0:01:14]} 1-0


[Site "https://www.chess.com"]

[Event "Titled Tuesday Blitz February 22 Late 2022"]
[White "Sargsyan, Anna M."]
[Black "Winkels, Marcel"]
[WhiteFideId "13308130"]
[BlackFideId "1003887"]
[WhiteElo "2271"]
[BlackElo "1900"]
[Result "1-0"]
[Round "01"]
[TimeControl "180+1"]
[Date "2022.02.23"]
[WhiteClock "0:00:34"]
[BlackClock "0:00:03"]

1. d4 {[%clk 0:02:59]}  Nf6 {[%clk 0:02:58]} 2. c4 {[%clk 0:03:00]}  c5 {[%clk 0:02:58]} 3. d5 {[%clk 0:02:58]}  e6 {[%clk 0:02:58]} 4. Nc3 {[%clk 0:02:58]}  exd5 {[%clk 0:02:58]} 5. cxd5 {[%clk 0:02:59]}  d6 {[%clk 0:02:58]} 6. e4 {[%clk 0:03:00]}  g6 {[%clk 0:02:57]} 7. f4 {[%clk 0:03:00]}  a6 {[%clk 0:02:56]} 8. Nf3 {[%clk 0:02:59]}  Bg7 {[%clk 0:02:55]} 9. a4 {[%clk 0:02:55]}  O-O {[%clk 0:02:51]} 10. Bd3 {[%clk 0:02:56]}  Bg4 {[%clk 0:02:44]} 11. h3 {[%clk 0:02:55]}  Bxf3 {[%clk 0:02:43]} 12. Qxf3 {[%clk 0:02:56]}  Nbd7 {[%clk 0:02:43]} 13. O-O {[%clk 0:02:56]}  Re8 {[%clk 0:02:42]} 14. Kh1 {[%clk 0:02:53]}  Rb8 {[%clk 0:02:40]} 15. Bd2 {[%clk 0:02:47]}  Qc7 {[%clk 0:02:31]} 16. Rae1 {[%clk 0:02:46]}  c4 {[%clk 0:02:29]} 17. Bc2 {[%clk 0:02:47]}  Nc5 {[%clk 0:02:28]} 18. Be3 {[%clk 0:02:41]}  Re7 {[%clk 0:02:16]} 19. Bd4 {[%clk 0:02:41]}  Rbe8 {[%clk 0:02:09]} 20. e5 {[%clk 0:02:41]}  Nfd7 {[%clk 0:02:06]} 21. Rd1 {[%clk 0:02:25]}  Nb3 {[%clk 0:01:39]} 22. Bxb3 {[%clk 0:02:20]}  cxb3 {[%clk 0:01:39]} 23. Ne4 {[%clk 0:02:21]}  dxe5 {[%clk 0:01:34]} 24. d6 {[%clk 0:02:21]}  Qc6 {[%clk 0:01:21]} 25. fxe5 {[%clk 0:01:47]}  Nxe5 {[%clk 0:01:10]} 26. Bxe5 {[%clk 0:01:46]}  Rxe5 {[%clk 0:01:10]} 27. Qxf7+ {[%clk 0:01:46]}  Kh8 {[%clk 0:01:09]} 28. d7 {[%clk 0:01:46]}  Rd8 {[%clk 0:00:49]} 29. Nf6 {[%clk 0:01:38]}  Re2 {[%clk 0:00:42]} 30. Rd5 {[%clk 0:01:09]}  Qe6 {[%clk 0:00:19]} 31. Qe8+ {[%clk 0:00:45]}  Rxe8 {[%clk 0:00:11]} 32. dxe8=Q+ {[%clk 0:00:44]}  Qxe8 {[%clk 0:00:11]} 33. Nxe8 {[%clk 0:00:44]}  Rxe8 {[%clk 0:00:11]} 34. Rd3 {[%clk 0:00:43]}  Bxb2 {[%clk 0:00:09]} 35. Rxb3 {[%clk 0:00:44]}  Bd4 {[%clk 0:00:09]} 36. Rxb7 {[%clk 0:00:44]}  a5 {[%clk 0:00:09]} 37. Rff7 {[%clk 0:00:39]}  h5 {[%clk 0:00:08]} 38. g4 {[%clk 0:00:37]}  h4 {[%clk 0:00:07]} 39. Kg2 {[%clk 0:00:38]}  Re2+ {[%clk 0:00:05]} 40. Kf3 {[%clk 0:00:34]}  Re3+ {[%clk 0:00:03]} 41. Kf4 {[%clk 0:00:34]}  Rxh3 {[%clk 0:00:03]} 42. Rf8# {[%clk 0:00:34]} 1-0


[Site "https://www.chess.com"]

[Event "Titled Tuesday Blitz February 22 Late 2022"]
[White "Sarkar, Justin"]
[Black "Iskusnyh, Sergei"]
[WhiteFideId "2010011"]
[BlackFideId "4120027"]
[WhiteElo "2038"]
[BlackElo "2492"]
[Result "1/2-1/2"]
[Round "01"]
[TimeControl "180+1"]
[Date "2022.02.23"]
[WhiteClock "0:00:06"]
[BlackClock "0:00:50"]

1. d4 {[%clk 0:02:59]}  d5 {[%clk 0:02:57]} 2. c4 {[%clk 0:02:57]}  c6 {[%clk 0:02:55]} 3. Nf3 {[%clk 0:02:54]}  Nf6 {[%clk 0:02:54]} 4. Nc3 {[%clk 0:02:51]}  e6 {[%clk 0:02:51]} 5. e3 {[%clk 0:02:41]}  a6 {[%clk 0:02:48]} 6. b3 {[%clk 0:02:37]}  Bb4 {[%clk 0:02:45]} 7. Bd2 {[%clk 0:02:36]}  Nbd7 {[%clk 0:02:44]} 8. Bd3 {[%clk 0:02:34]}  Bd6 {[%clk 0:02:36]} 9. O-O {[%clk 0:02:25]}  e5 {[%clk 0:02:33]} 10. cxd5 {[%clk 0:02:15]}  cxd5 {[%clk 0:02:28]} 11. e4 {[%clk 0:01:53]}  O-O {[%clk 0:02:23]} 12. exd5 {[%clk 0:01:31]}  exd4 {[%clk 0:02:22]} 13. Nxd4 {[%clk 0:01:30]}  Nb6 {[%clk 0:02:18]} 14. Nf5 {[%clk 0:01:22]}  Bxf5 {[%clk 0:02:13]} 15. Bxf5 {[%clk 0:01:23]}  Nbxd5 {[%clk 0:02:10]} 16. Nxd5 {[%clk 0:01:13]}  Nxd5 {[%clk 0:02:08]} 17. Bg5 {[%clk 0:00:44]}  Qxg5 {[%clk 0:01:56]} 18. Qxd5 {[%clk 0:00:43]}  Qf6 {[%clk 0:01:53]} 19. Be4 {[%clk 0:00:27]}  Rae8 {[%clk 0:01:45]} 20. g3 {[%clk 0:00:20]}  Re7 {[%clk 0:01:39]} 21. Rad1 {[%clk 0:00:18]}  Bb4 {[%clk 0:01:32]} 22. Qf5 {[%clk 0:00:13]}  Qxf5 {[%clk 0:01:28]} 23. Bxf5 {[%clk 0:00:14]}  g6 {[%clk 0:01:28]} 24. Bd3 {[%clk 0:00:12]}  a5 {[%clk 0:01:26]} 25. a4 {[%clk 0:00:12]}  Rfe8 {[%clk 0:01:16]} 26. Bc4 {[%clk 0:00:12]}  b6 {[%clk 0:01:15]} 27. Rd5 {[%clk 0:00:12]}  Kg7 {[%clk 0:01:14]} 28. Rfd1 {[%clk 0:00:11]}  Re1+ {[%clk 0:01:11]} 29. Rxe1 {[%clk 0:00:11]}  Rxe1+ {[%clk 0:01:11]} 30. Kg2 {[%clk 0:00:11]}  Re7 {[%clk 0:01:11]} 31. Bb5 {[%clk 0:00:11]}  h5 {[%clk 0:01:09]} 32. Rd7 {[%clk 0:00:10]}  Re6 {[%clk 0:01:08]} 33. Bc4 {[%clk 0:00:10]}  Rf6 {[%clk 0:01:08]} 34. Rd3 {[%clk 0:00:09]}  Rc6 {[%clk 0:00:55]} 35. Rd7 {[%clk 0:00:07]}  Rf6 {[%clk 0:00:54]} 36. Rd3 {[%clk 0:00:07]}  Rc6 {[%clk 0:00:51]} 37. Rd7 {[%clk 0:00:06]}  Rf6 {[%clk 0:00:50]} 1/2-1/2


[Site "https://www.chess.com"]

[Event "Titled Tuesday Blitz February 22 Late 2022"]
[White "Sliwicki, Damian"]
[Black "Holt, Conrad"]
[WhiteFideId "1127128"]
[BlackFideId "2034387"]
[WhiteElo "2084"]
[BlackElo "2586"]
[Result "0-1"]
[Round "01"]
[TimeControl "180+1"]
[Date "2022.02.23"]
[WhiteClock "0:00:15"]
[BlackClock "0:00:06"]

1. e4 {[%clk 0:02:18]}  e6 {[%clk 0:03:00]} 2. d4 {[%clk 0:02:17]}  d5 {[%clk 0:03:00]} 3. Nc3 {[%clk 0:02:16]}  Nf6 {[%clk 0:03:00]} 4. Bg5 {[%clk 0:02:14]}  dxe4 {[%clk 0:03:00]} 5. Nxe4 {[%clk 0:02:12]}  Be7 {[%clk 0:03:01]} 6. Nxf6+ {[%clk 0:02:11]}  Bxf6 {[%clk 0:03:01]} 7. Bxf6 {[%clk 0:02:11]}  Qxf6 {[%clk 0:03:02]} 8. Nf3 {[%clk 0:02:11]}  c5 {[%clk 0:03:02]} 9. Bb5+ {[%clk 0:02:08]}  Bd7 {[%clk 0:03:01]} 10. Bxd7+ {[%clk 0:02:08]}  Nxd7 {[%clk 0:03:01]} 11. O-O {[%clk 0:02:08]}  O-O {[%clk 0:02:57]} 12. c3 {[%clk 0:02:06]}  Rad8 {[%clk 0:02:52]} 13. dxc5 {[%clk 0:01:49]}  Nxc5 {[%clk 0:02:52]} 14. Qe2 {[%clk 0:01:47]}  Nd3 {[%clk 0:01:58]} 15. Rad1 {[%clk 0:01:38]}  Qg6 {[%clk 0:01:55]} 16. Ne5 {[%clk 0:01:26]}  Nxe5 {[%clk 0:01:24]} 17. Qxe5 {[%clk 0:01:27]}  Rxd1 {[%clk 0:01:22]} 18. Rxd1 {[%clk 0:01:28]}  Qc2 {[%clk 0:01:22]} 19. Rf1 {[%clk 0:01:02]}  Qxb2 {[%clk 0:01:20]} 20. Qc7 {[%clk 0:01:03]}  g6 {[%clk 0:01:15]} 21. h3 {[%clk 0:01:01]}  a6 {[%clk 0:00:58]} 22. Rd1 {[%clk 0:01:01]}  b5 {[%clk 0:00:52]} 23. Rd8 {[%clk 0:00:59]}  Qb1+ {[%clk 0:00:20]} 24. Kh2 {[%clk 0:00:59]}  Qf5 {[%clk 0:00:18]} 25. Rxf8+ {[%clk 0:00:40]}  Kxf8 {[%clk 0:00:19]} 26. Qd6+ {[%clk 0:00:40]}  Kg7 {[%clk 0:00:17]} 27. Qxa6 {[%clk 0:00:41]}  Qxf2 {[%clk 0:00:06]} 28. Qxb5 {[%clk 0:00:41]}  Qf4+ {[%clk 0:00:07]} 29. Kg1 {[%clk 0:00:38]}  Qc1+ {[%clk 0:00:07]} 30. Kh2 {[%clk 0:00:38]}  Qxc3 {[%clk 0:00:08]} 31. a4 {[%clk 0:00:38]}  e5 {[%clk 0:00:07]} 32. a5 {[%clk 0:00:38]}  e4 {[%clk 0:00:08]} 33. a6 {[%clk 0:00:38]}  e3 {[%clk 0:00:08]} 34. a7 {[%clk 0:00:38]}  Qc7+ {[%clk 0:00:08]} 35. Kg1 {[%clk 0:00:35]}  Qxa7 {[%clk 0:00:09]} 36. Qe5+ {[%clk 0:00:35]}  f6 {[%clk 0:00:09]} 37. Qe4 {[%clk 0:00:31]}  e2+ {[%clk 0:00:09]} 38. Kh2 {[%clk 0:00:32]}  Qc7+ {[%clk 0:00:09]} 39. g3 {[%clk 0:00:30]}  Qe5 {[%clk 0:00:08]} 40. Qb7+ {[%clk 0:00:16]}  Kh6 {[%clk 0:00:08]} 41. Qc8 {[%clk 0:00:13]}  Qe7 {[%clk 0:00:06]} 42. Qf8+ {[%clk 0:00:13]}  Qxf8 {[%clk 0:00:06]} 43. h4 {[%clk 0:00:14]}  e1=Q {[%clk 0:00:06]} 44. Kh3 {[%clk 0:00:14]}  Qd6 {[%clk 0:00:06]} 45. Kg4 {[%clk 0:00:15]}  Qdxg3# {[%clk 0:00:06]} 0-1


[Site "https://www.chess.com"]

[Event "Titled Tuesday Blitz February 22 Late 2022"]
[White "Sviridov, Valery"]
[Black "Garagulya, Konstantin"]
[WhiteFideId "4120680"]
[BlackFideId "4128931"]
[WhiteElo "2454"]
[BlackElo "2329"]
[Result "1-0"]
[Round "01"]
[TimeControl "180+1"]
[Date "2022.02.22"]
[WhiteClock "0:01:31"]
[BlackClock "0:00:02"]

1. Nf3 {[%clk 0:02:53]}  Nf6 {[%clk 0:02:58]} 2. g3 {[%clk 0:02:53]}  b6 {[%clk 0:02:58]} 3. Bg2 {[%clk 0:02:54]}  Bb7 {[%clk 0:02:59]} 4. O-O {[%clk 0:02:54]}  c5 {[%clk 0:03:00]} 5. c4 {[%clk 0:02:54]}  e6 {[%clk 0:03:00]} 6. Nc3 {[%clk 0:02:54]}  d5 {[%clk 0:03:01]} 7. cxd5 {[%clk 0:02:52]}  Nxd5 {[%clk 0:03:00]} 8. d4 {[%clk 0:02:51]}  cxd4 {[%clk 0:02:58]} 9. Qa4+ {[%clk 0:02:45]}  Qd7 {[%clk 0:02:57]} 10. Qxd7+ {[%clk 0:02:44]}  Nxd7 {[%clk 0:02:57]} 11. Nxd4 {[%clk 0:02:44]}  N7f6 {[%clk 0:02:49]} 12. Ncb5 {[%clk 0:02:14]}  Kd7 {[%clk 0:02:44]} 13. e4 {[%clk 0:02:11]}  Nb4 {[%clk 0:02:31]} 14. a3 {[%clk 0:02:10]}  a6 {[%clk 0:02:03]} 15. Nc3 {[%clk 0:02:08]}  Nd3 {[%clk 0:01:31]} 16. Rd1 {[%clk 0:02:01]}  Nxc1 {[%clk 0:01:31]} 17. Raxc1 {[%clk 0:02:01]}  Ke8 {[%clk 0:01:31]} 18. e5 {[%clk 0:01:59]}  Bxg2 {[%clk 0:01:28]} 19. Kxg2 {[%clk 0:01:56]}  Nd7 {[%clk 0:01:27]} 20. f4 {[%clk 0:01:57]}  Bc5 {[%clk 0:01:23]} 21. Ne4 {[%clk 0:01:57]}  Bxd4 {[%clk 0:00:33]} 22. Rxd4 {[%clk 0:01:57]}  Nc5 {[%clk 0:00:33]} 23. Nxc5 {[%clk 0:01:45]}  bxc5 {[%clk 0:00:29]} 24. Rxc5 {[%clk 0:01:46]}  Rb8 {[%clk 0:00:15]} 25. b4 {[%clk 0:01:45]}  h5 {[%clk 0:00:13]} 26. Rc7 {[%clk 0:01:44]}  g6 {[%clk 0:00:11]} 27. Rdd7 {[%clk 0:01:37]}  Rh7 {[%clk 0:00:12]} 28. Ra7 {[%clk 0:01:31]}  Rc8 {[%clk 0:00:11]} 29. Rdc7 {[%clk 0:01:31]}  Rxc7 {[%clk 0:00:02]} 30. Rxc7 {[%clk 0:01:32]}  h4 {[%clk 0:00:02]} 31. Ra7 {[%clk 0:01:31]} 1-0


[Site "https://www.chess.com"]